[Event "British Rapidplay Championship 2023"]
[Site "Mercure Bradford, Bankfield Hotel"]
[Date "2023.04.16"]
[Round "7.5"]
[White "Eckersley-Waites, Tom"]
[Black "Sivanandan, Bodhana"]
[Result "1-0"]
[TimeControl "15 minutes plus 10 seconds per move"]
[WhiteElo "2304"]
[BlackElo "1561"]

1. d4 {[%clk 00:15:17]} {[%emt 00:00:03]} d5 {[%clk 00:15:16]} {[%emt
00:00:05]} 2. c4 {[%clk 00:15:25]} {[%emt 00:00:01]} c6 {[%clk 00:15:25]}
{[%emt 00:00:02]} 3. Nf3 {[%clk 00:15:33]} {[%emt 00:00:01]} Nf6 {[%clk
00:15:34]} {[%emt 00:00:01]} 4. Nc3 {[%clk 00:15:41]} {[%emt 00:00:02]} e6
{[%clk 00:15:43]} {[%emt 00:00:02]} 5. g3 {[%clk 00:15:47]} {[%emt 00:00:04]}
dxc4 {[%clk 00:15:50]} {[%emt 00:00:03]} 6. Bg2 {[%clk 00:15:55]} {[%emt
00:00:01]} b5 {[%clk 00:15:30]} {[%emt 00:00:30]} 7. Ne5 {[%clk 00:14:56]}
{[%emt 00:01:09]} Nd5 {[%clk 00:15:10]} {[%emt 00:00:31]} 8. O-O {[%clk
00:15:00]} {[%emt 00:00:05]} Be7 {[%clk 00:14:01]} {[%emt 00:01:19]} 9. e4
{[%clk 00:13:12]} {[%emt 00:01:59]} Nxc3 {[%clk 00:13:47]} {[%emt 00:00:24]} 10.
bxc3 {[%clk 00:13:19]} {[%emt 00:00:03]} O-O {[%clk 00:12:25]} {[%emt
00:01:32]} 11. a4 {[%clk 00:13:27]} {[%emt 00:00:02]} Bb7 {[%clk 00:11:37]}
{[%emt 00:00:58]} 12. Rb1 {[%clk 00:13:01]} {[%emt 00:00:37]} Qa5 {[%clk
00:08:25]} {[%emt 00:03:22]} 13. Nxc4 {[%clk 00:07:26]} {[%emt 00:05:44]} Qxc3
{[%clk 00:08:23]} {[%emt 00:00:12]} 14. Ne5 {[%clk 00:07:35]} {[%emt 00:00:02]}
Qa5 {[%clk 00:07:36]} {[%emt 00:00:57]} 15. Bf4 {[%clk 00:05:20]} {[%emt
00:02:24]} Rd8 {[%clk 00:05:47]} {[%emt 00:01:59]} 16. Bh3 {[%clk 00:04:40]}
{[%emt 00:00:51]} g6 {[%clk 00:04:03]} {[%emt 00:01:55]} 17. Bh6 {[%clk
00:03:12]} {[%emt 00:01:36]} Nd7 {[%clk 00:03:46]} {[%emt 00:00:28]} 18. Nxf7
{[%clk 00:02:59]} {[%emt 00:00:23]} Kxf7 {[%clk 00:03:28]} {[%emt 00:00:27]} 19.
Qf3+ {[%clk 00:02:42]} {[%emt 00:00:27]} Nf6 {[%clk 00:03:26]} {[%emt
00:00:13]} 20. e5 {[%clk 00:02:47]} {[%emt 00:00:05]} Rd7 {[%clk 00:02:54]}
{[%emt 00:00:41]} 21. exf6 {[%clk 00:01:58]} {[%emt 00:00:59]} Bxf6 {[%clk
00:02:18]} {[%emt 00:00:47]} 22. Rfe1 {[%clk 00:00:52]} {[%emt 00:01:16]} Re8
{[%clk 00:02:11]} {[%emt 00:00:17]} 23. Qb3 {[%clk 00:00:41]} {[%emt 00:00:21]}
Rde7 {[%clk 00:02:06]} {[%emt 00:00:15]} 24. Bf4 {[%clk 00:00:28]} {[%emt
00:00:23]} Qd8 {[%clk 00:02:05]} {[%emt 00:00:11]} 25. Bg2 {[%clk 00:00:21]}
{[%emt 00:00:17]} Qxd4 {[%clk 00:01:36]} {[%emt 00:00:39]} 26. axb5 {[%clk
00:00:20]} {[%emt 00:00:11]} cxb5 {[%clk 00:01:41]} {[%emt 00:00:05]} 27. Qxb5
{[%clk 00:00:28]} {[%emt 00:00:02]} Bxg2 {[%clk 00:01:45]} {[%emt 00:00:05]} 28.
Kxg2 {[%clk 00:00:37]} {[%emt 00:00:01]} Qd5+ {[%clk 00:01:53]} {[%emt
00:00:03]} 29. Kg1 {[%clk 00:00:36]} {[%emt 00:00:11]} Qxb5 {[%clk 00:02:02]}
{[%emt 00:00:02]} 30. Rxb5 {[%clk 00:00:45]} e5 {[%clk 00:02:10]} {[%emt
00:00:02]} 31. Be3 {[%clk 00:00:53]} {[%emt 00:00:02]} a6 {[%clk 00:02:05]}
{[%emt 00:00:16]} 32. Ra5 {[%clk 00:00:47]} {[%emt 00:00:16]} Re6 {[%clk
00:02:10]} {[%emt 00:00:04]} 33. Rea1 {[%clk 00:00:47]} {[%emt 00:00:09]} Ra8
{[%clk 00:02:19]} {[%emt 00:00:02]} 34. Rb1 {[%clk 00:00:56]} {[%emt 00:00:01]}
Rae8 {[%clk 00:02:12]} {[%emt 00:00:17]} 35. Kg2 {[%clk 00:00:34]} {[%emt
00:00:33]} h5 {[%clk 00:02:08]} {[%emt 00:00:13]} 36. Kf3 {[%clk 00:00:34]}
{[%emt 00:00:09]} e4+ {[%clk 00:02:09]} {[%emt 00:00:09]} 37. Ke2 {[%clk
00:00:43]} Rd6 {[%clk 00:02:08]} {[%emt 00:00:12]} 38. Rb7+ {[%clk 00:00:21]}
{[%emt 00:00:32]} Re7 {[%clk 00:02:15]} {[%emt 00:00:02]} 39. Rb3 {[%clk
00:00:20]} {[%emt 00:00:12]} Red7 {[%clk 00:02:18]} {[%emt 00:00:07]} 40. Bf4
{[%clk 00:00:25]} {[%emt 00:00:04]} Re6 {[%clk 00:02:23]} {[%emt 00:00:05]} 41.
Be3 {[%clk 00:00:29]} {[%emt 00:00:06]} Red6 {[%clk 00:02:31]} {[%emt
00:00:02]} 42. Rba3 {[%clk 00:00:38]} {[%emt 00:00:02]} Ke6 {[%clk 00:02:28]}
{[%emt 00:00:12]} 43. Rxa6 {[%clk 00:00:46]} {[%emt 00:00:02]} Rxa6 {[%clk
00:02:21]} {[%emt 00:00:17]} 44. Rxa6+ {[%clk 00:00:55]} {[%emt 00:00:01]} Rd6
{[%clk 00:02:30]} {[%emt 00:00:01]} 45. Ra4 {[%clk 00:01:01]} {[%emt 00:00:04]}
Kf5 {[%clk 00:02:33]} {[%emt 00:00:07]} 46. Ra5+ {[%clk 00:00:55]} {[%emt
00:00:17]} Ke6 {[%clk 00:02:40]} {[%emt 00:00:02]} 47. h3 {[%clk 00:01:03]}
{[%emt 00:00:02]} Rd5 {[%clk 00:02:40]} {[%emt 00:00:10]} 48. Ra8 {[%clk
00:01:03]} {[%emt 00:00:09]} Rd8 {[%clk 00:02:44]} {[%emt 00:00:07]} 49. Ra4
{[%clk 00:01:02]} {[%emt 00:00:11]} Kf5 {[%clk 00:02:46]} {[%emt 00:00:08]} 50.
Ra5+ {[%clk 00:01:11]} {[%emt 00:00:01]} Ke6 {[%clk 00:02:54]} {[%emt
00:00:02]} 51. g4 {[%clk 00:01:20]} {[%emt 00:00:01]} hxg4 {[%clk 00:02:56]}
{[%emt 00:00:09]} 52. hxg4 {[%clk 00:01:29]} Rd5 {[%clk 00:02:53]} {[%emt
00:00:13]} 53. Ra6+ {[%clk 00:01:00]} {[%emt 00:00:39]} Rd6 {[%clk 00:02:50]}
{[%emt 00:00:13]} 54. Ra4 {[%clk 00:01:08]} {[%emt 00:00:01]} Kd5 {[%clk
00:02:50]} {[%emt 00:00:11]} 55. Bf4 {[%clk 00:00:51]} {[%emt 00:00:27]} Rc6
{[%clk 00:02:50]} {[%emt 00:00:09]} 56. Ra5+ {[%clk 00:00:28]} {[%emt
00:00:33]} Rc5 {[%clk 00:02:52]} {[%emt 00:00:08]} 57. Ra2 {[%clk 00:00:38]}
Be5 {[%clk 00:02:50]} {[%emt 00:00:13]} 58. Be3 {[%clk 00:00:37]} {[%emt
00:00:10]} Rc3 {[%clk 00:02:50]} {[%emt 00:00:09]} 59. Ra5+ {[%clk 00:00:40]}
{[%emt 00:00:07]} Kd6 {[%clk 00:02:42]} {[%emt 00:00:19]} 60. Ra4 {[%clk
00:00:49]} {[%emt 00:00:02]} Kd5 {[%clk 00:02:48]} {[%emt 00:00:03]} 61. Ra5+
{[%clk 00:00:58]} Kd6 {[%clk 00:02:57]} {[%emt 00:00:02]} 62. Kf1 {[%clk
00:00:32]} {[%emt 00:00:36]} Rc4 {[%clk 00:02:47]} {[%emt 00:00:21]} 63. Kg2
{[%clk 00:00:37]} {[%emt 00:00:04]} Rc8 {[%clk 00:02:39]} {[%emt 00:00:18]} 64.
Ra6+ {[%clk 00:00:45]} {[%emt 00:00:02]} Rc6 {[%clk 00:02:41]} {[%emt
00:00:08]} 65. Ra8 {[%clk 00:00:54]} {[%emt 00:00:01]} Kd5 {[%clk 00:02:32]}
{[%emt 00:00:18]} 66. Kh3 {[%clk 00:00:19]} {[%emt 00:00:46]} Bf6 {[%clk
00:02:32]} {[%emt 00:00:10]} 67. Kg3 {[%clk 00:00:20]} {[%emt 00:00:09]} Be5+
{[%clk 00:02:26]} {[%emt 00:00:16]} 68. Kh4 {[%clk 00:00:28]} {[%emt 00:00:01]}
Bf6+ {[%clk 00:02:35]} {[%emt 00:00:01]} 69. Bg5 {[%clk 00:00:37]} {[%emt
00:00:02]} Be5 {[%clk 00:02:41]} {[%emt 00:00:04]} 70. Ra5+ {[%clk 00:00:36]}
{[%emt 00:00:11]} Ke6 {[%clk 00:02:39]} {[%emt 00:00:11]} 71. Ra4 {[%clk
00:00:45]} {[%emt 00:00:01]} Kd5 {[%clk 00:02:48]} {[%emt 00:00:02]} 72. Ra5+
{[%clk 00:00:42]} {[%emt 00:00:13]} Ke6 {[%clk 00:02:56]} {[%emt 00:00:01]} 73.
Be3 {[%clk 00:00:51]} {[%emt 00:00:02]} Bf6+ {[%clk 00:03:00]} {[%emt
00:00:06]} 74. Kg3 {[%clk 00:00:59]} {[%emt 00:00:02]} Be5+ {[%clk 00:03:08]}
{[%emt 00:00:02]} 75. Kh3 {[%clk 00:01:05]} {[%emt 00:00:04]} Rc3 {[%clk
00:02:58]} {[%emt 00:00:19]} 76. Ra6+ {[%clk 00:01:08]} {[%emt 00:00:07]} Kf7
{[%clk 00:02:35]} {[%emt 00:00:33]} 77. Ra4 {[%clk 00:01:17]} {[%emt 00:00:02]}
Bf4 {[%clk 00:02:15]} {[%emt 00:00:30]} 78. Rxe4 {[%clk 00:01:25]} {[%emt
00:00:02]} Bxe3 {[%clk 00:02:23]} {[%emt 00:00:02]} 79. fxe3 {[%clk 00:01:33]}
{[%emt 00:00:02]} Kf6 {[%clk 00:02:29]} {[%emt 00:00:04]} 80. Kg3 {[%clk
00:01:40]} {[%emt 00:00:03]} g5 {[%clk 00:02:35]} {[%emt 00:00:04]} 81. Kf3
{[%clk 00:01:46]} {[%emt 00:00:03]} Rb3 {[%clk 00:02:29]} {[%emt 00:00:16]} 82.
Ra4 {[%clk 00:01:55]} {[%emt 00:00:03]} Rb6 {[%clk 00:02:33]} {[%emt 00:00:05]}
83. Ra5 {[%clk 00:01:49]} {[%emt 00:00:16]} Kg6 {[%clk 00:02:08]} {[%emt
00:00:35]} 84. Rd5 {[%clk 00:01:38]} {[%emt 00:00:20]} Kf6 {[%clk 00:02:11]}
{[%emt 00:00:07]} 85. Ke4 {[%clk 00:01:25]} {[%emt 00:00:23]} Rb4+ {[%clk
00:02:10]} {[%emt 00:00:11]} 86. Rd4 {[%clk 00:01:31]} {[%emt 00:00:05]} Rb5
{[%clk 00:02:05]} {[%emt 00:00:15]} 87. Rd6+ {[%clk 00:01:21]} {[%emt
00:00:20]} Kg7 {[%clk 00:01:42]} {[%emt 00:00:33]} 88. Rd5 {[%clk 00:01:28]}
{[%emt 00:00:02]} Rb4+ {[%clk 00:01:24]} {[%emt 00:00:28]} 89. Kf5 {[%clk
00:01:36]} {[%emt 00:00:03]} Rb3 {[%clk 00:01:17]} {[%emt 00:00:17]} 90. Re5
{[%clk 00:01:25]} {[%emt 00:00:21]} Kf7 {[%clk 00:01:10]} {[%emt 00:00:17]} 91.
Kxg5 {[%clk 00:01:29]} {[%emt 00:00:05]} Rb1 {[%clk 00:01:16]} {[%emt
00:00:05]} 92. Ra5 {[%clk 00:01:03]} {[%emt 00:00:36]} Re1 {[%clk 00:00:41]}
{[%emt 00:00:45]} 93. Ra7+ {[%clk 00:01:12]} {[%emt 00:00:01]} Ke6 {[%clk
00:00:50]} 94. Ra6+ {[%clk 00:01:17]} {[%emt 00:00:05]} Kf7 {[%clk 00:00:55]}
{[%emt 00:00:05]} 95. Ra3 {[%clk 00:01:13]} {[%emt 00:00:14]} Re2 {[%clk
00:00:49]} {[%emt 00:00:16]} 96. Kf5 {[%clk 00:01:04]} {[%emt 00:00:18]} Rf2+
{[%clk 00:00:55]} {[%emt 00:00:05]} 97. Ke5 {[%clk 00:01:12]} {[%emt 00:00:01]}
Kg6 {[%clk 00:00:57]} {[%emt 00:00:09]} 98. Ra6+ {[%clk 00:01:13]} {[%emt
00:00:09]} Kg5 {[%clk 00:00:50]} {[%emt 00:00:17]} 99. e4 {[%clk 00:01:17]}
{[%emt 00:00:06]} Kxg4 {[%clk 00:00:39]} {[%emt 00:00:21]} 100. Rg6+ {[%clk
00:01:11]} {[%emt 00:00:16]} Kh5 {[%clk 00:00:47]} {[%emt 00:00:02]} 101. Rg1
{[%clk 00:01:12]} {[%emt 00:00:09]} Ra2 {[%clk 00:00:47]} {[%emt 00:00:11]} 102.
Kf5 {[%clk 00:01:15]} {[%emt 00:00:06]} Rf2+ {[%clk 00:00:53]} {[%emt
00:00:05]} 103. Ke6 {[%clk 00:01:23]} Ra2 {[%clk 00:00:57]} {[%emt 00:00:06]}
104. e5 {[%clk 00:01:30]} {[%emt 00:00:03]} Ra6+ {[%clk 00:00:43]} {[%emt
00:00:24]} 105. Kf5 {[%clk 00:01:36]} {[%emt 00:00:04]} Kh6 {[%clk 00:00:51]}
{[%emt 00:00:02]} 106. e6 {[%clk 00:01:44]} {[%emt 00:00:02]} Ra8 {[%clk
00:00:27]} {[%emt 00:00:34]} 107. Kf6 {[%clk 00:01:51]} {[%emt 00:00:03]} Rf8+
{[%clk 00:00:32]} {[%emt 00:00:05]} 108. Ke7 {[%clk 00:01:59]} {[%emt
00:00:02]} Rf2 {[%clk 00:00:40]} {[%emt 00:00:02]} 109. Kd7 {[%clk 00:02:05]}
{[%emt 00:00:04]} Rd2+ {[%clk 00:00:46]} {[%emt 00:00:04]} 110. Ke8 {[%clk
00:02:13]} {[%emt 00:00:02]} Kh7 {[%clk 00:00:38]} {[%emt 00:00:18]} 111. e7
{[%clk 00:02:21]} {[%emt 00:00:02]} Ra2 {[%clk 00:00:42]} {[%emt 00:00:06]} 112.
Rg4 {[%clk 00:02:09]} {[%emt 00:00:22]} Re2 {[%clk 00:00:15]} {[%emt 00:00:37]}
113. Kf7 {[%clk 00:02:15]} {[%emt 00:00:03]} Rf2+ {[%clk 00:00:24]} {[%emt
00:00:02]} 114. Ke6 {[%clk 00:02:23]} {[%emt 00:00:02]} Re2+ {[%clk 00:00:32]}
{[%emt 00:00:02]} 115. Kf6 {[%clk 00:02:31]} {[%emt 00:00:01]} Kh8 {[%clk
00:00:28]} {[%emt 00:00:15]} 116. Rg5 {[%clk 00:02:30]} {[%emt 00:00:11]} Rxe7
{[%clk 00:00:29]} {[%emt 00:00:10]} 117. Kxe7 {[%clk 00:02:37]} {[%emt
00:00:02]} Kh7 {[%clk 00:00:36]} {[%emt 00:00:02]} 118. Kf6 {[%clk 00:02:44]}
{[%emt 00:00:03]} Kh6 {[%clk 00:00:39]} {[%emt 00:00:08]} 119. Rf5 {[%clk
00:02:50]} {[%emt 00:00:05]} Kh7 {[%clk 00:00:46]} {[%emt 00:00:03]} 120. Kf7
{[%clk 00:02:58]} {[%emt 00:00:01]} Kh6 {[%clk 00:00:55]} {[%emt 00:00:01]} 121.
Re5 {[%clk 00:03:07]} {[%emt 00:00:02]} Kh7 {[%clk 00:01:04]} {[%emt 00:00:01]}
122. Rh5 {[%clk 00:15:10]} {[%emt 00:00:15]} 1-0

[Event "British Rapidplay Championship 2023"]
[Site "Mercure Bradford, Bankfield Hotel"]
[Date "2023.04.16"]
[Round "7.8"]
[White "Kisteneva, Liza"]
[Black "Walker, David J"]
[Result "1-0"]
[TimeControl "15 minutes plus 10 seconds per move"]
[WhiteElo "2040"]
[BlackElo "2250"]

1. c4 {[%clk 00:15:18]} {[%emt 00:00:02]} Nf6 {[%clk 00:15:18]} {[%emt
00:00:02]} 2. Nc3 {[%clk 00:15:25]} {[%emt 00:00:03]} e6 {[%clk 00:15:27]}
{[%emt 00:00:02]} 3. d4 {[%clk 00:15:30]} {[%emt 00:00:05]} d5 {[%clk
00:15:34]} {[%emt 00:00:03]} 4. cxd5 {[%clk 00:15:23]} {[%emt 00:00:17]} exd5
{[%clk 00:15:41]} {[%emt 00:00:03]} 5. Bg5 {[%clk 00:15:20]} {[%emt 00:00:13]}
c6 {[%clk 00:15:48]} {[%emt 00:00:04]} 6. Qc2 {[%clk 00:15:20]} {[%emt
00:00:09]} Be7 {[%clk 00:15:33]} {[%emt 00:00:26]} 7. e3 {[%clk 00:15:25]}
{[%emt 00:00:05]} h6 {[%clk 00:15:34]} {[%emt 00:00:08]} 8. Bh4 {[%clk
00:15:30]} {[%emt 00:00:05]} O-O {[%clk 00:15:39]} {[%emt 00:00:05]} 9. Bd3
{[%clk 00:15:26]} {[%emt 00:00:14]} a5 {[%clk 00:15:03]} {[%emt 00:00:47]} 10.
h3 {[%clk 00:15:24]} {[%emt 00:00:12]} Na6 {[%clk 00:14:59]} {[%emt 00:00:14]}
11. a3 {[%clk 00:15:26]} {[%emt 00:00:08]} Nc7 {[%clk 00:14:58]} {[%emt
00:00:10]} 12. Nge2 {[%clk 00:15:22]} {[%emt 00:00:15]} Re8 {[%clk 00:14:43]}
{[%emt 00:00:25]} 13. Bg3 {[%clk 00:15:05]} {[%emt 00:00:26]} Bd6 {[%clk
00:14:34]} {[%emt 00:00:20]} 14. Bh4 {[%clk 00:14:29]} {[%emt 00:00:46]} Be7
{[%clk 00:13:55]} {[%emt 00:00:49]} 15. Bg3 {[%clk 00:14:05]} {[%emt 00:00:33]}
Ne6 {[%clk 00:13:07]} {[%emt 00:00:58]} 16. Rb1 {[%clk 00:12:48]} {[%emt
00:01:28]} Ng5 {[%clk 00:12:36]} {[%emt 00:00:41]} 17. O-O {[%clk 00:07:15]}
{[%emt 00:05:43]} Bd6 {[%clk 00:11:30]} {[%emt 00:01:16]} 18. Bxd6 {[%clk
00:07:14]} {[%emt 00:00:11]} Qxd6 {[%clk 00:11:39]} {[%emt 00:00:01]} 19. Ng3
{[%clk 00:07:21]} {[%emt 00:00:02]} Bd7 {[%clk 00:09:01]} {[%emt 00:02:48]} 20.
Na4 {[%clk 00:04:42]} {[%emt 00:02:50]} Rxe3 {[%clk 00:05:18]} {[%emt
00:03:54]} 21. h4 {[%clk 00:04:43]} {[%emt 00:00:09]} Rxg3 {[%clk 00:05:06]}
{[%emt 00:00:21]} 22. fxg3 {[%clk 00:04:52]} {[%emt 00:00:02]} Nge4 {[%clk
00:04:04]} {[%emt 00:01:12]} 23. Bxe4 {[%clk 00:04:03]} {[%emt 00:00:58]} Nxe4
{[%clk 00:04:10]} {[%emt 00:00:04]} 24. Nc5 {[%clk 00:03:28]} {[%emt 00:00:46]}
Nxc5 {[%clk 00:04:05]} {[%emt 00:00:15]} 25. dxc5 {[%clk 00:03:35]} {[%emt
00:00:02]} Qxg3 {[%clk 00:04:11]} {[%emt 00:00:05]} 26. Qf2 {[%clk 00:03:34]}
{[%emt 00:00:11]} Qg6 {[%clk 00:04:12]} {[%emt 00:00:08]} 27. Rbe1 {[%clk
00:03:34]} {[%emt 00:00:11]} Be6 {[%clk 00:04:18]} {[%emt 00:00:03]} 28. Re3
{[%clk 00:03:35]} {[%emt 00:00:09]} Rd8 {[%clk 00:03:15]} {[%emt 00:01:13]} 29.
Rg3 {[%clk 00:03:40]} {[%emt 00:00:05]} Qh7 {[%clk 00:03:21]} {[%emt 00:00:04]}
30. Qd4 {[%clk 00:03:44]} {[%emt 00:00:06]} Kh8 {[%clk 00:02:25]} {[%emt
00:01:06]} 31. h5 {[%clk 00:03:39]} {[%emt 00:00:16]} Rd7 {[%clk 00:02:15]}
{[%emt 00:00:20]} 32. Rf6 {[%clk 00:03:04]} {[%emt 00:00:45]} a4 {[%clk
00:02:11]} {[%emt 00:00:15]} 33. Qxa4 {[%clk 00:02:46]} {[%emt 00:00:28]} d4
{[%clk 00:01:36]} {[%emt 00:00:45]} 34. Qa8+ {[%clk 00:02:54]} {[%emt
00:00:02]} Qg8 {[%clk 00:01:44]} {[%emt 00:00:01]} 35. Rxh6+ {[%clk 00:03:02]}
{[%emt 00:00:02]} 1-0

[Event "British Rapidplay Championship 2023"]
[Site "Mercure Bradford, Bankfield Hotel"]
[Date "2023.04.16"]
[Round "7.9"]
[White "Mazek, Marek"]
[Black "Wells, Peter K"]
[Result "0-1"]
[TimeControl "15 minutes plus 10 seconds per move"]
[WhiteElo "2052"]
[BlackElo "2466"]

1. e4 {[%clk 00:15:16]} {[%emt 00:00:04]} c5 {[%clk 00:13:01]} {[%emt
00:02:20]} 2. Nc3 {[%clk 00:15:22]} {[%emt 00:00:03]} Nc6 {[%clk 00:13:03]}
{[%emt 00:00:08]} 3. f4 {[%clk 00:15:30]} {[%emt 00:00:01]} g6 {[%clk
00:13:11]} {[%emt 00:00:04]} 4. Bb5 {[%clk 00:15:38]} {[%emt 00:00:01]} Nd4
{[%clk 00:13:14]} {[%emt 00:00:07]} 5. Nf3 {[%clk 00:15:44]} {[%emt 00:00:03]}
Bg7 {[%clk 00:12:53]} {[%emt 00:00:33]} 6. O-O {[%clk 00:15:51]} {[%emt
00:00:02]} a6 {[%clk 00:12:35]} {[%emt 00:00:28]} 7. Bc4 {[%clk 00:15:59]}
{[%emt 00:00:02]} b5 {[%clk 00:10:57]} {[%emt 00:01:48]} 8. Bd5 {[%clk
00:16:06]} {[%emt 00:00:03]} Rb8 {[%clk 00:11:07]} {[%emt 00:00:01]} 9. d3
{[%clk 00:16:06]} {[%emt 00:00:09]} e6 {[%clk 00:10:45]} {[%emt 00:00:32]} 10.
Bb3 {[%clk 00:16:14]} {[%emt 00:00:02]} Ne7 {[%clk 00:09:32]} {[%emt 00:01:23]}
11. Nxd4 {[%clk 00:16:01]} {[%emt 00:00:23]} cxd4 {[%clk 00:09:29]} {[%emt
00:00:14]} 12. Ne2 {[%clk 00:16:08]} {[%emt 00:00:02]} O-O {[%clk 00:09:25]}
{[%emt 00:00:14]} 13. Qe1 {[%clk 00:16:12]} {[%emt 00:00:06]} Bb7 {[%clk
00:08:55]} {[%emt 00:00:40]} 14. Kh1 {[%clk 00:15:16]} {[%emt 00:01:06]} a5
{[%clk 00:04:32]} {[%emt 00:04:34]} 15. a4 {[%clk 00:15:15]} {[%emt 00:00:11]}
b4 {[%clk 00:04:41]} {[%emt 00:00:01]} 16. Qf2 {[%clk 00:15:13]} {[%emt
00:00:11]} Qb6 {[%clk 00:04:46]} {[%emt 00:00:05]} 17. Rb1 {[%clk 00:15:05]}
{[%emt 00:00:18]} Ba8 {[%clk 00:03:41]} {[%emt 00:01:16]} 18. Bd2 {[%clk
00:14:13]} {[%emt 00:01:01]} Kh8 {[%clk 00:03:13]} {[%emt 00:00:39]} 19. Qh4
{[%clk 00:13:53]} {[%emt 00:00:29]} Qd8 {[%clk 00:02:48]} {[%emt 00:00:35]} 20.
Rf3 {[%clk 00:13:33]} {[%emt 00:00:29]} Nc6 {[%clk 00:02:38]} {[%emt 00:00:22]}
21. Qf2 {[%clk 00:13:15]} {[%emt 00:00:27]} f5 {[%clk 00:02:27]} {[%emt
00:00:21]} 22. e5 {[%clk 00:13:08]} {[%emt 00:00:17]} d6 {[%clk 00:02:15]}
{[%emt 00:00:22]} 23. exd6 {[%clk 00:12:26]} {[%emt 00:00:52]} Qxd6 {[%clk
00:02:24]} {[%emt 00:00:01]} 24. Rh3 {[%clk 00:12:34]} {[%emt 00:00:02]} Bf6
{[%clk 00:02:16]} {[%emt 00:00:18]} 25. Re1 {[%clk 00:11:51]} {[%emt 00:00:53]}
Rbe8 {[%clk 00:02:19]} {[%emt 00:00:07]} 26. c3 {[%clk 00:10:22]} {[%emt
00:01:40]} bxc3 {[%clk 00:01:22]} {[%emt 00:01:07]} 27. bxc3 {[%clk 00:10:30]}
{[%emt 00:00:01]} Rb8 {[%clk 00:01:19]} {[%emt 00:00:13]} 28. Bc4 {[%clk
00:10:34]} {[%emt 00:00:06]} Rb2 {[%clk 00:01:19]} {[%emt 00:00:10]} 29. Bc1
{[%clk 00:10:34]} {[%emt 00:00:10]} dxc3 {[%clk 00:01:00]} {[%emt 00:00:30]} 30.
Bxb2 {[%clk 00:08:01]} {[%emt 00:02:42]} cxb2 {[%clk 00:01:10]} 31. Rb1 {[%clk
00:06:01]} {[%emt 00:02:11]} Qa3 {[%clk 00:00:36]} {[%emt 00:00:43]} 32. d4
{[%clk 00:05:30]} {[%emt 00:00:42]} Qxa4 {[%clk 00:00:34]} {[%emt 00:00:12]} 33.
Bb3 {[%clk 00:04:23]} {[%emt 00:01:16]} Qb4 {[%clk 00:00:42]} {[%emt 00:00:03]}
34. Bxe6 {[%clk 00:03:59]} {[%emt 00:00:34]} Nxd4 {[%clk 00:00:46]} {[%emt
00:00:05]} 35. Nxd4 {[%clk 00:04:01]} {[%emt 00:00:08]} Qxd4 {[%clk 00:00:53]}
{[%emt 00:00:04]} 36. Qxd4 {[%clk 00:04:02]} {[%emt 00:00:08]} Bxd4 {[%clk
00:01:02]} {[%emt 00:00:01]} 37. Ra3 {[%clk 00:03:48]} {[%emt 00:00:24]} Be4
{[%clk 00:01:09]} {[%emt 00:00:03]} 38. Rxb2 {[%clk 00:03:35]} {[%emt
00:00:23]} Bxb2 {[%clk 00:01:19]} {[%emt 00:00:01]} 39. Rxa5 {[%clk 00:03:44]}
{[%emt 00:00:01]} Rd8 {[%clk 00:01:19]} {[%emt 00:00:09]} 40. Bb3 {[%clk
00:03:48]} {[%emt 00:00:06]} Bc1 {[%clk 00:01:25]} {[%emt 00:00:05]} 0-1

[Event "British Rapidplay Championship 2023"]
[Site "Mercure Bradford, Bankfield Hotel"]
[Date "2023.04.16"]
[Round "7.10"]
[White "Mikalajunas, Kajus"]
[Black "Arkell, Keith C"]
[Result "1/2-1/2"]
[TimeControl "15 minutes plus 10 seconds per move"]
[WhiteElo "1778"]
[BlackElo "2447"]

1. e4 {[%clk 00:15:17]} {[%emt 00:00:02]} c6 {[%clk 00:15:00]} {[%emt
00:00:21]} 2. Nf3 {[%clk 00:15:20]} {[%emt 00:00:05]} d5 {[%clk 00:15:08]}
{[%emt 00:00:03]} 3. Nc3 {[%clk 00:15:27]} {[%emt 00:00:02]} Bg4 {[%clk
00:15:16]} {[%emt 00:00:03]} 4. Be2 {[%clk 00:15:35]} {[%emt 00:00:01]} dxe4
{[%clk 00:15:21]} {[%emt 00:00:06]} 5. Nxe4 {[%clk 00:15:42]} {[%emt 00:00:03]}
Nd7 {[%clk 00:15:30]} {[%emt 00:00:02]} 6. O-O {[%clk 00:14:53]} {[%emt
00:00:58]} Ngf6 {[%clk 00:15:38]} {[%emt 00:00:03]} 7. Ng3 {[%clk 00:14:52]}
{[%emt 00:00:10]} e6 {[%clk 00:15:42]} {[%emt 00:00:07]} 8. d4 {[%clk
00:14:45]} {[%emt 00:00:16]} Be7 {[%clk 00:15:48]} {[%emt 00:00:04]} 9. h3
{[%clk 00:14:49]} {[%emt 00:00:05]} Bxf3 {[%clk 00:15:56]} {[%emt 00:00:03]} 10.
Bxf3 {[%clk 00:14:57]} {[%emt 00:00:02]} O-O {[%clk 00:16:03]} {[%emt
00:00:03]} 11. c4 {[%clk 00:14:23]} {[%emt 00:00:44]} Qc7 {[%clk 00:16:06]}
{[%emt 00:00:07]} 12. Qe2 {[%clk 00:14:01]} {[%emt 00:00:31]} Rfe8 {[%clk
00:16:13]} {[%emt 00:00:05]} 13. Rd1 {[%clk 00:14:03]} {[%emt 00:00:06]} Rad8
{[%clk 00:16:14]} {[%emt 00:00:10]} 14. Be3 {[%clk 00:14:03]} {[%emt 00:00:09]}
c5 {[%clk 00:16:03]} {[%emt 00:00:23]} 15. d5 {[%clk 00:13:45]} {[%emt
00:00:27]} exd5 {[%clk 00:16:11]} {[%emt 00:00:03]} 16. cxd5 {[%clk 00:13:02]}
{[%emt 00:00:52]} Nb6 {[%clk 00:16:13]} {[%emt 00:00:09]} 17. Qb5 {[%clk
00:11:24]} {[%emt 00:01:47]} Qd7 {[%clk 00:14:51]} {[%emt 00:01:32]} 18. Qxd7
{[%clk 00:11:09]} {[%emt 00:00:25]} Rxd7 {[%clk 00:14:53]} {[%emt 00:00:08]} 19.
Nf5 {[%clk 00:10:52]} {[%emt 00:00:27]} Bf8 {[%clk 00:14:54]} {[%emt 00:00:10]}
20. d6 {[%clk 00:10:35]} {[%emt 00:00:27]} g6 {[%clk 00:14:20]} {[%emt
00:00:44]} 21. Ne7+ {[%clk 00:09:28]} {[%emt 00:01:16]} Bxe7 {[%clk 00:14:06]}
{[%emt 00:00:24]} 22. dxe7 {[%clk 00:09:36]} {[%emt 00:00:03]} Rexe7 {[%clk
00:09:59]} {[%emt 00:04:17]} 23. Bxc5 {[%clk 00:09:29]} {[%emt 00:00:15]}
1/2-1/2